bitfinex-derivatives/quotes_BTCF0:USTF0_20250119
["timestamp","ask_amount","ask_price","bid_price","bid_amount"]
[1737314643212,1.00750899,105300.0,105290.0,0.27449787]
[1737314645216,1.00750899,105300.0,105290.0,0.22695587]
[1737314645523,1.04168773,105300.0,105290.0,0.22695587]
[1737314645710,0.6147468,105300.0,105290.0,0.22695587]
[1737314646711,0.047542,105290.0,105280.0,0.39747688]
[1737314646911,0.47669948,105290.0,105280.0,0.39747688]
[1737314647921,0.44252074,105290.0,105280.0,0.39747688]
[1737314648221,0.44252074,105290.0,105280.0,0.17052101]
[1737314649318,0.08172074,105290.0,105280.0,0.17052101]
[1737314650518,0.08172074,105290.0,105280.0,0.53132101]
[1737314650721,0.08172074,105290.0,105280.0,0.75827688]
[1737314651117,0.08172074,105290.0,105280.0,0.39747688]
[1737314651425,0.08172074,105290.0,105280.0,0.44502388]
[1737314652225,0.11589948,105290.0,105280.0,0.44502388]
[1737314652616,0.08172074,105290.0,105280.0,0.44502388]
[1737314653123,0.11589948,105290.0,105280.0,0.44502388]
[1737314655114,0.11589948,105290.0,105280.0,0.047547]
[1737314655319,0.047547,105280.0,105270.0,0.64037001]
[1737314655624,0.11590448,105280.0,105270.0,0.27957001]
[1737314656324,0.11590448,105280.0,105270.0,0.64037001]
[1737314656711,0.11590448,105280.0,105270.0,0.469849]
[1737314656913,0.11590448,105280.0,105270.0,0.109049]
[1737314658625,0.11590448,105280.0,105270.0,0.469849]
[1737314658817,0.11590448,105280.0,105270.0,0.64037001]
[1737314660329,0.11590448,105280.0,105270.0,0.27957001]
[1737314660529,0.11590448,105280.0,105270.0,0.64037001]
[1737314661036,0.12523661,105280.0,105270.0,0.27957001]
[1737314661530,0.12523661,105280.0,105270.0,0.109049]
[1737314663631,0.12523661,105280.0,105270.0,0.61957799]
[1737314664133,0.12523661,105280.0,105270.0,0.98037799]
[1737314664322,0.12523661,105280.0,105270.0,0.61957799]
[1737314664725,0.12523661,105280.0,105270.0,0.98037799]
[1737314664925,0.12523661,105280.0,105270.0,1.38145325]
[1737314666136,0.12523661,105280.0,105270.0,0.75342212]
[1737314666833,0.48603661,105280.0,105270.0,0.39262212]
[1737314668337,0.48603661,105280.0,105270.0,0.33612657]
[1737314670137,0.51773661,105280.0,105270.0,0.33612657]
[1737314671137,0.51773661,105280.0,105270.0,0.61969969]
[1737314674540,0.51773661,105280.0,105270.0,1.02136128]
[1737314675542,0.51773661,105280.0,105270.0,0.79428371]
[1737314677942,0.51773661,105280.0,105270.0,0.50676635]
[1737314682546,0.51773661,105280.0,105270.0,0.27949929]
[1737314683747,0.51773661,105280.0,105270.0,0.50676635]
[1737314684649,0.51773661,105280.0,105270.0,0.79452296]
[1737314686744,0.44937913,105280.0,105270.0,0.79452296]
[1737314686948,0.51773661,105280.0,105270.0,0.79452296]
[1737314688956,0.51773661,105280.0,105270.0,0.71647396]
[1737314689150,0.54873661,105280.0,105270.0,0.68547396]
[1737314690254,0.54873661,105280.0,105270.0,0.22735163]
[1737314692559,0.54873661,105280.0,105270.0,0.51092475]
[1737314693862,0.54873661,105280.0,105270.0,0.17048252]
[1737314695163,0.54873661,105280.0,105270.0,0.21803352]
[1737314697270,0.51773661,105280.0,105270.0,0.21803352]
[1737314698859,0.48355787,105280.0,105270.0,0.21803352]
[1737314699061,0.09105787,105280.0,105270.0,0.64073352]
[1737314699466,0.09105787,105280.0,105270.0,0.86808515]
[1737314699968,0.09105787,105280.0,105270.0,0.50728515]
[1737314700156,0.09105787,105280.0,105270.0,0.86808515]
[1737314700768,0.12523661,105280.0,105270.0,0.86808515]
[1737314700967,0.12523661,105280.0,105270.0,1.1546338]
[1737314701668,0.09105787,105280.0,105270.0,1.1546338]
[1737314701971,0.09347069,105290.0,105280.0,0.047547]
[1737314702264,0.09347069,105290.0,105280.0,0.408347]
[1737314703174,0.09347069,105290.0,105280.0,0.047547]
[1737314703563,0.09347069,105290.0,105280.0,1.0927298]
[1737314705371,0.09347069,105290.0,105280.0,0.55821797]
[1737314705874,0.09347069,105290.0,105280.0,0.91901797]
[1737314706467,0.09347069,105290.0,105280.0,0.63544485]
[1737314707570,0.09347069,105290.0,105280.0,0.27464485]
[1737314707772,0.09347069,105290.0,105280.0,0.21782081]
[1737314708974,0.09347069,105290.0,105280.0,0.047547]
[1737314709275,0.05929195,105290.0,105280.0,0.047547]
[1737314709481,0.09347069,105290.0,105280.0,0.047547]
[1737314710276,0.12764943,105290.0,105280.0,0.047547]
[1737314711676,0.09347069,105290.0,105280.0,0.047547]
[1737314715584,0.09347069,105290.0,105280.0,0.44491866]
[1737314716983,0.09347069,105290.0,105280.0,0.80571866]
[1737314717370,0.09347069,105290.0,105280.0,0.44491866]
[1737314717777,0.09347069,105290.0,105280.0,0.27464485]
[1737314719084,0.09347069,105290.0,105280.0,0.63544485]
[1737314719384,0.09347069,105290.0,105280.0,0.27464485]
[1737314722587,0.09347069,105290.0,105280.0,0.047547]
[1737314723480,0.09347069,105290.0,105280.0,0.408347]
[1737314723882,0.09347069,105290.0,105280.0,0.047547]
[1737314724281,0.09347069,105290.0,105280.0,0.408347]
[1737314724683,0.09347069,105290.0,105280.0,0.047547]
[1737314725289,0.26452627,105290.0,105280.0,0.21779108]
[1737314726487,0.09347069,105290.0,105280.0,0.21779108]
[1737314729894,0.45427069,105290.0,105280.0,0.21779108]
[1737314730095,0.45427069,105290.0,105280.0,0.95759098]
[1737314731791,0.09347069,105290.0,105280.0,0.95759098]
[1737314732393,0.45427069,105290.0,105280.0,0.95759098]
[1737314732792,0.09347069,105290.0,105280.0,0.95759098]
[1737314733400,0.09347069,105290.0,105280.0,0.73049313]
[1737314735389,0.45427069,105290.0,105280.0,0.73049313]
[1737314735590,0.09347069,105290.0,105280.0,0.73049313]
[1737314736098,0.09347069,105290.0,105280.0,0.95779222]
[1737314738204,0.09347069,105290.0,105280.0,0.73049313]
[1737314740192,0.45427069,105290.0,105280.0,0.73049313]
[1737314740593,0.09347069,105290.0,105280.0,0.73049313]
[1737314741998,0.45427069,105290.0,105280.0,0.73049313]
[1737314743297,0.09347069,105290.0,105280.0,0.73049313]
[1737314743497,0.09347069,105290.0,105280.0,0.95780995]
[1737314744105,0.45427069,105290.0,105280.0,0.95780995]
[1737314744809,0.45427069,105290.0,105280.0,0.73049313]
[1737314745104,0.09347069,105290.0,105280.0,0.73049313]
[1737314745908,0.09347069,105290.0,105280.0,0.21809689]
[1737314751811,0.45427069,105290.0,105280.0,0.21809689]
[1737314752506,0.45427069,105290.0,105280.0,0.73140526]
[1737314752808,0.09347069,105290.0,105280.0,0.73140526]
[1737314753904,0.45427069,105290.0,105280.0,0.73140526]
[1737314754513,0.09347069,105290.0,105280.0,0.73140526]
[1737314756110,0.45427069,105290.0,105280.0,0.73140526]
[1737314756708,0.09347069,105290.0,105280.0,0.73140526]
[1737314757012,0.45427069,105290.0,105280.0,0.73140526]
[1737314757713,0.09347069,105290.0,105280.0,0.73140526]
[1737314758809,0.45427069,105290.0,105280.0,0.73140526]
[1737314761111,0.09347069,105290.0,105280.0,1.09220526]
[1737314761416,0.05929195,105290.0,105280.0,1.09220526]
[1737314761609,0.09347069,105290.0,105280.0,1.09220526]
[1737314761916,0.08172274,105290.0,105280.0,1.09220526]
[1737314763817,0.08172274,105290.0,105280.0,0.73140526]
[1737314764315,0.08172274,105290.0,105280.0,1.09220526]
[1737314765106,0.47670148,105290.0,105280.0,0.68385826]
[1737314766020,0.47670148,105290.0,105280.0,0.17069923]
[1737314767320,0.047547,105280.0,105270.0,0.17069923]
[1737314767520,0.11590448,105280.0,105270.0,0.17069923]
[1737314770717,0.47670448,105280.0,105270.0,0.17069923]
[1737314770917,0.48769251,105280.0,105270.0,0.17069923]
[1737314771426,0.51779251,105280.0,105270.0,0.17069923]
[1737314771621,0.51779251,105280.0,105260.0,1.17007477]
[1737314771918,0.03417874,105270.0,105260.0,1.12252177]
[1737314772223,0.03417874,105270.0,105260.0,1.48332177]
[1737314772920,0.08172974,105270.0,105260.0,1.48332177]
[1737314774021,0.08172974,105270.0,105260.0,1.51750051]
[1737314776021,0.08172974,105270.0,105260.0,2.14263657]
[1737314776427,0.08172974,105270.0,105260.0,2.10845783]
[1737314776728,0.08172974,105270.0,105260.0,2.14263657]
[1737314780320,0.08172974,105270.0,105260.0,1.80234882]
[1737314781428,0.08172974,105270.0,105260.0,2.14263657]
[1737314782327,0.08172974,105270.0,105260.0,1.34637695]
[1737314784626,0.08172974,105270.0,105260.0,1.31219821]
[1737314786733,0.08172974,105270.0,105260.0,1.34637695]
[1737314787339,0.047551,105270.0,105260.0,1.34637695]
[1737314787525,0.08172974,105270.0,105260.0,1.34637695]
[1737314790234,0.08172974,105270.0,105260.0,1.1192023]
[1737314790430,0.08172974,105270.0,105260.0,1.85608595]
[1737314790628,0.047551,105270.0,105260.0,1.85608595]
[1737314790837,0.08172974,105270.0,105260.0,1.85608595]
[1737314791836,0.08172974,105270.0,105260.0,2.32913242]
[1737314792720,0.047551,105270.0,105260.0,2.32913242]
[1737314796434,0.047551,105270.0,105260.0,1.98884467]
[1737314796829,0.047551,105270.0,105260.0,1.47764467]
[1737314797533,0.047551,105270.0,105260.0,1.28897275]
[1737314802240,0.35940573,105280.0,105270.0,0.047551]
[1737314803040,0.35940573,105280.0,105270.0,0.27515631]
[1737314805437,0.18841577,105280.0,105270.0,0.72916136]
[1737314807639,0.22259451,105280.0,105270.0,0.72916136]
[1737314811135,0.22259451,105280.0,105270.0,1.54453302]
[1737314811937,0.22259451,105280.0,105270.0,1.07041082]
[1737314813345,0.22259451,105280.0,105270.0,0.27534722]
[1737314813346,0.39358447,105280.0,105270.0,0.27534722]
[1737314814348,0.39358447,105280.0,105270.0,0.44618913]
[1737314815346,0.75438447,105280.0,105270.0,0.44618913]
[1737314816334,0.39358447,105280.0,105270.0,0.44618913]
[1737314818034,0.39358447,105280.0,105270.0,0.27534722]
[1737314820647,0.22259451,105280.0,105270.0,1.07118022]
[1737314821449,0.22259451,105280.0,105270.0,1.02362922]
[1737314821752,0.58339451,105280.0,105270.0,1.02362922]
[1737314822043,0.61757325,105280.0,105250.0,0.90824238]
[1737314822250,0.47671348,105260.0,105250.0,0.39700238]
[1737314822444,0.11591348,105260.0,105250.0,0.39700238]
[1737314822645,0.21231348,105260.0,105250.0,0.39700238]
[1737314823448,0.21231348,105260.0,105250.0,0.47874112]
[1737314823449,0.047556,105260.0,105250.0,0.47874112]
[1737314823649,0.047556,105260.0,105250.0,0.54204112]
[1737314824058,0.19024039,105260.0,105250.0,0.37284752]
[1737314824349,0.19024039,105260.0,105250.0,0.73364752]
[1737314825037,0.16160625,105260.0,105250.0,0.50583874]
[1737314830959,0.16160625,105260.0,105250.0,0.51647332]
[1737314831258,0.16160625,105260.0,105250.0,0.50583874]
[1737314832362,0.19578499,105260.0,105250.0,0.50583874]
[1737314832845,0.19578499,105260.0,105250.0,0.47166]
[1737314834558,0.19578499,105260.0,105250.0,0.50583874]
[1737314834960,0.19578499,105260.0,105250.0,0.47166]
[1737314836054,0.19578499,105260.0,105250.0,0.69917785]
[1737314836360,0.20644608,105260.0,105250.0,0.69917785]
[1737314837458,0.20644608,105260.0,105250.0,0.73335659]
[1737314840854,0.20644608,105260.0,105250.0,0.69917785]
[1737314842250,0.20644608,105260.0,105250.0,0.73335659]
[1737314843266,0.09239583,105260.0,105250.0,1.20559893]
[1737314847668,0.05821709,105260.0,105250.0,1.20559893]
[1737314847867,0.20644608,105260.0,105250.0,1.20559893]
[1737314848165,0.20644608,105260.0,105250.0,1.17142019]
[1737314848358,0.20644608,105260.0,105250.0,1.20559893]
[1737314849067,0.20644608,105260.0,105250.0,0.86426608]
[1737314849258,0.20644608,105260.0,105250.0,0.83008734]
[1737314850972,0.17226734,105260.0,105250.0,0.86426608]
[1737314851267,0.20644608,105260.0,105250.0,0.83008734]
[1737314852364,0.20644608,105260.0,105250.0,1.59888732]
[1737314853562,0.23684608,105260.0,105250.0,1.59888732]
[1737314853965,0.23684608,105260.0,105250.0,1.45610546]
[1737314855263,0.23684608,105260.0,105250.0,1.17142019]
[1737314857162,0.23684608,105260.0,105250.0,1.10812019]
[1737314857472,0.33532482,105260.0,105250.0,1.10812019]
[1737314858062,0.36395896,105260.0,105250.0,1.27944611]
[1737314858269,0.32978022,105260.0,105250.0,1.27944611]
[1737314862560,0.50077018,105260.0,105250.0,1.27944611]
[1737314863966,0.50077018,105260.0,105250.0,1.27963913]
[1737314864273,0.32978022,105260.0,105250.0,1.27963913]
[1737314865674,0.32978022,105260.0,105250.0,1.05179079]
[1737314865675,0.30123782,105260.0,105250.0,1.05179079]
[1737314869364,0.19587673,105260.0,105250.0,1.08596953]
[1737314869569,0.19587673,105260.0,105250.0,1.11629079]
[1737314873681,0.22441913,105260.0,105250.0,0.70080498]
[1737314878168,0.39540909,105260.0,105250.0,0.87162648]
[1737314879381,0.39540909,105260.0,105250.0,0.70080498]
[1737314880373,0.19588409,105260.0,105250.0,1.12189817]
[1737314881884,0.19588409,105260.0,105250.0,1.17842059]
[1737314883083,0.23006283,105260.0,105250.0,1.11392059]
[1737314883286,0.32536283,105260.0,105250.0,1.11392059]
[1737314884486,0.46804722,105260.0,105250.0,1.05739214]
[1737314884983,0.46804722,105260.0,105250.0,1.00983214]
[1737314885184,0.82884722,105260.0,105250.0,0.64903214]
[1737314885890,0.71469787,105260.0,105250.0,0.87690345]
[1737314887081,0.88568783,105260.0,105250.0,0.39890494]
[1737314888690,0.57201348,105260.0,105250.0,0.00019302]
[1737314888986,0.21121348,105260.0,105250.0,0.00019302]
[1737314891388,0.38227606,105260.0,105250.0,0.00019302]
[1737314893278,0.38227606,105260.0,105250.0,0.36099302]
[1737314894077,0.38227606,105260.0,105250.0,0.00019302]
[1737314895384,0.46776456,105260.0,105250.0,0.75970494]
[1737314895982,0.25655108,105260.0,105250.0,0.84144368]
[1737314896184,0.25655108,105260.0,105250.0,0.90234368]
[1737314896591,0.1140227,105260.0,105250.0,0.90234368]
[1737314897290,0.31359096,105270.0,105250.0,0.93652242]
[1737314897492,0.31359096,105270.0,105260.0,0.47671348]
[1737314897698,0.31359096,105270.0,105260.0,0.44253474]
[1737314897891,0.4900167,105280.0,105270.0,0.047551]
[1737314899193,0.17642574,105280.0,105270.0,0.4452176]
[1737314900593,0.21060448,105280.0,105270.0,0.4452176]
[1737314900796,0.18701229,105280.0,105270.0,0.4452176]
[1737314901497,0.22119103,105280.0,105270.0,0.4452176]
[1737314903397,0.53478199,105280.0,105270.0,0.047551]
[1737314905295,0.50060325,105280.0,105270.0,0.047551]
[1737314907600,0.50060325,105280.0,105270.0,0.08172974]
[1737314908197,0.32954067,105280.0,105270.0,0.08172974]
[1737314909315,0.50060325,105280.0,105270.0,0.08172974]
[1737314910603,0.22119103,105280.0,105270.0,0.4452176]
[1737314911205,0.18701229,105280.0,105270.0,0.4452176]
[1737314913209,0.22119103,105280.0,105270.0,0.4452176]
[1737314914117,0.18701229,105280.0,105270.0,0.4452176]
[1737314914315,0.54781229,105280.0,105270.0,0.21797954]
[1737314915615,0.58199103,105280.0,105270.0,0.21797954]
[1737314918420,0.54781229,105280.0,105270.0,0.21797954]
[1737314919216,0.58199103,105280.0,105270.0,0.21797954]
[1737314919823,0.54781229,105280.0,105270.0,0.21797954]
[1737314921516,0.54781229,105280.0,105270.0,0.4452176]
[1737314922826,0.58199103,105280.0,105270.0,0.4452176]
[1737314923525,0.22119103,105280.0,105270.0,0.4452176]
[1737314923726,0.58199103,105280.0,105270.0,0.4452176]
[1737314924920,0.75305361,105280.0,105270.0,0.21797954]
[1737314925525,0.71887487,105280.0,105270.0,0.21797954]
[1737314928430,0.75305361,105280.0,105270.0,0.21797954]
[1737314929241,0.75305361,105280.0,105270.0,0.4452176]
[1737314930032,0.78723235,105280.0,105270.0,0.3976666]
[1737314930334,0.78723235,105280.0,105270.0,0.14255907]
[1737314930528,1.14803235,105280.0,105270.0,0.09265907]
[1737314930733,0.047551,105270.0,105260.0,0.2848044]
[1737314930929,0.47670848,105270.0,105260.0,0.2848044]
[1737314932425,0.47670848,105270.0,105250.0,1.21356587]
[1737314932632,0.11591348,105260.0,105250.0,0.87223302]
[1737314933733,0.25847564,105260.0,105250.0,0.87223302]
[1737314935135,0.11591348,105260.0,105250.0,0.87223302]
[1737314936141,0.11591348,105260.0,105250.0,0.91979302]
[1737314936345,0.08173474,105260.0,105250.0,0.95397176]
[1737314936636,0.08173474,105260.0,105250.0,1.01597176]
[1737314937238,0.08173474,105260.0,105250.0,0.98179302]
[1737314938442,0.19011416,105270.0,105260.0,0.047556]
[1737314938646,0.2242929,105270.0,105260.0,0.11213474]
[1737314938946,0.2242929,105270.0,105260.0,0.438756]
[1737314939849,0.08173074,105270.0,105260.0,0.47293474]
[1737314942252,0.09215784,105270.0,105260.0,0.47293474]
[1737314945347,0.09215784,105270.0,105260.0,0.438756]
[1737314946851,0.09215784,105270.0,105260.0,0.077956]
[1737314949547,0.26323243,105270.0,105260.0,0.077956]
[1737314950143,0.58323243,105270.0,105260.0,0.077956]
[1737314950457,0.58323243,105270.0,105260.0,0.438756]
[1737314954260,0.58323243,105270.0,105260.0,0.077956]
[1737314955758,0.41215784,105270.0,105260.0,0.077956]
[1737314958258,0.48156056,105270.0,105260.0,0.438756]
[1737314958564,0.43400856,105270.0,105260.0,0.50711348]
[1737314959363,0.43400856,105270.0,105260.0,1.14774806]
[1737314960360,0.43400856,105270.0,105260.0,1.11356932]
[1737314961864,0.32,105270.0,105260.0,1.11356932]
[1737314962961,0.35417874,105270.0,105260.0,1.11356932]
[1737314963268,0.4681873,105270.0,105260.0,0.438756]
[1737314963466,0.5157383,105270.0,105260.0,0.438756]
[1737314965068,0.65822928,105270.0,105260.0,0.438756]
[1737314966362,0.54422072,105270.0,105260.0,0.438756]
[1737314967571,0.54422072,105270.0,105260.0,0.47293474]
[1737314968763,0.49666972,105270.0,105260.0,0.47293474]
[1737314969973,0.46826365,105270.0,105260.0,1.46031936]
[1737314971470,0.91079339,105270.0,105260.0,1.01778462]
[1737314971672,0.94169339,105270.0,105260.0,0.98738462]
[1737314972175,0.90751465,105270.0,105260.0,0.98738462]
[1737314972369,0.54671465,105270.0,105260.0,0.98738462]
[1737314972873,0.43262974,105270.0,105260.0,0.98738462]
[1737314973065,0.60370433,105270.0,105250.0,0.75784114]
[1737314973268,0.03417874,105260.0,105250.0,0.75784114]
[1737314973668,0.08173474,105260.0,105250.0,0.75784114]
[1737314974579,0.19578753,105260.0,105250.0,1.1225888]
[1737314975076,0.19578753,105260.0,105250.0,1.08841006]
[1737314976975,0.19578753,105260.0,105250.0,0.7236624]
[1737314977272,0.19578753,105260.0,105250.0,0.3628624]
[1737314977476,0.19578753,105260.0,105250.0,0.7236624]
[1737314977977,0.22996627,105260.0,105250.0,0.2848044]
[1737314978277,0.04756,105250.0,105240.0,1.15295301]
[1737314978469,0.08173874,105250.0,105240.0,1.15295301]
[1737314979568,0.19572707,105250.0,105240.0,0.79215301]
[1737314979777,0.19572707,105250.0,105240.0,1.15295301]
[1737314980076,0.19572707,105250.0,105240.0,0.79215301]
[1737314980277,0.19572707,105250.0,105240.0,1.15295301]
[1737314981875,0.2055777,105250.0,105240.0,1.15295301]
[1737314982778,0.2055777,105250.0,105240.0,1.11877427]
[1737314986277,0.2055777,105250.0,105240.0,1.48548523]
[1737314986278,0.09158937,105250.0,105240.0,1.48548523]
[1737314986481,0.09158937,105250.0,105240.0,1.77028963]
[1737314990782,0.09158937,105250.0,105240.0,1.40948963]
[1737314991483,0.09158937,105250.0,105240.0,1.77028963]
[1737314991783,0.09158937,105250.0,105240.0,1.80446837]
[1737314993586,0.04756,105250.0,105240.0,1.80446837]
[1737314993978,0.04756,105250.0,105240.0,2.14580122]
[1737314994279,0.20566943,105260.0,105240.0,2.14580122]
[1737314994482,0.20566943,105260.0,105250.0,0.0306]
[1737314994685,0.20566943,105260.0,105250.0,0.0617]
[1737314995281,0.20566943,105260.0,105250.0,0.14343874]
[1737314995480,0.20566943,105260.0,105250.0,0.50423874]
[1737314996585,0.0916811,105260.0,105250.0,1.01635752]
[1737314998090,0.0916811,105260.0,105250.0,0.98217878]
[1737314998285,0.20566943,105260.0,105250.0,1.34783653]
[1737314999989,0.20566943,105260.0,105250.0,1.12052215]
[1737315000487,0.60064817,105260.0,105250.0,0.75972215]
[1737315000693,0.23984817,105260.0,105250.0,0.75972215]
[1737315001093,0.23984817,105260.0,105250.0,0.71216215]
[1737315001394,0.23984817,105260.0,105250.0,0.0617]
[1737315001395,0.65773443,105260.0,105250.0,0.0617]
[1737315002285,0.04756,105250.0,105240.0,0.93798184]
[1737315002492,0.47671748,105250.0,105240.0,0.93798184]
[1737315003292,0.44253874,105250.0,105240.0,0.93798184]
[1737315003599,0.08173874,105250.0,105240.0,0.93798184]
[1737315003787,0.25281333,105250.0,105240.0,0.93798184]
[1737315005287,0.39548054,105250.0,105240.0,0.93798184]
[1737315006395,0.39548054,105250.0,105240.0,0.42670184]
[1737315008397,0.23003171,105250.0,105240.0,1.19521858]
[1737315009194,0.19585297,105250.0,105240.0,1.19521858]
[1737315009496,0.19585297,105250.0,105240.0,0.85388573]
[1737315009895,0.19585297,105250.0,105240.0,0.68695546]
[1737315010093,0.23003171,105250.0,105240.0,0.68695546]
[1737315010400,0.19585297,105250.0,105240.0,0.68695546]
[1737315011095,0.23003171,105250.0,105240.0,0.68695546]
[1737315012598,0.19585297,105250.0,105240.0,0.68695546]
[1737315012900,0.23003171,105250.0,105240.0,0.68695546]
[1737315013598,0.23003171,105250.0,105240.0,0.91457934]
[1737315015603,0.19585297,105250.0,105240.0,0.91457934]
[1737315015902,0.23003171,105250.0,105240.0,0.91478993]
[1737315016100,0.42965928,105250.0,105240.0,0.03241059]
[1737315016402,0.39548054,105250.0,105240.0,0.03241059]
[1737315017104,0.42965928,105250.0,105240.0,0.03241059]
[1737315017403,0.25858469,105250.0,105240.0,0.03241059]
[1737315018404,0.22440595,105250.0,105240.0,0.03241059]
[1737315019097,0.58520595,105250.0,105240.0,0.03241059]
[1737315019701,0.61938469,105250.0,105240.0,0.03241059]
[1737315019902,0.79045928,105250.0,105240.0,0.03241059]
[1737315021599,0.79045928,105250.0,105240.0,0.00021059]
[1737315021806,0.82325928,105250.0,105240.0,0.00021059]
[1737315022405,0.82325928,105250.0,105240.0,0.22783447]
[1737315022406,0.62357158,105250.0,105240.0,0.22783447]
[1737315023793,0.65218469,105250.0,105240.0,0.22783447]
[1737315025704,0.65218469,105250.0,105240.0,0.00021059]
[1737315038312,0.68059207,105250.0,105240.0,0.00021059]
[1737315041613,0.71477081,105250.0,105240.0,0.00021059]
[1737315041915,0.15010122,105240.0,105230.0,0.03128941]
[1737315042116,0.51090122,105240.0,105230.0,0.03128941]
[1737315043117,0.047569,105230.0,105220.0,0.29282388]
[1737315043310,0.47672648,105230.0,105220.0,0.29282388]
[1737315043707,0.47672648,105230.0,105220.0,0.0652]
[1737315044106,0.47672648,105230.0,105220.0,0.05428347]
[1737315045318,0.79034756,105230.0,105220.0,0.05428347]
[1737315046815,0.59075563,105230.0,105220.0,0.28190735]
[1737315052119,0.55657689,105230.0,105220.0,0.28190735]
[1737315052616,0.11402915,105230.0,105220.0,0.75863883]
[1737315052822,0.53187741,105250.0,105230.0,0.047569]
[1737315052823,0.17107741,105250.0,105230.0,0.047569]
[1737315053114,0.28097584,105260.0,105250.0,0.04756]
[1737315053719,0.28097584,105260.0,105250.0,0.07866]
[1737315053921,0.28097584,105260.0,105250.0,0.43946]
[1737315054111,0.29079436,105260.0,105250.0,0.07866]
[1737315054520,0.3249731,105260.0,105250.0,0.07866]
[1737315054714,0.125734,105260.0,105250.0,0.30628388]
[1737315054932,0.10946765,105260.0,105250.0,0.30628388]
[1737315055719,0.10946765,105260.0,105250.0,0.25872388]
[1737315055920,0.10946765,105260.0,105250.0,0.45914015]
[1737315056318,0.47026765,105260.0,105250.0,0.42904015]
[1737315056516,0.50046765,105260.0,105250.0,0.42904015]
[1737315057218,0.50046765,105260.0,105250.0,0.0311]
[1737315062827,0.13966765,105260.0,105250.0,0.0311]
[1737315063517,0.50046765,105260.0,105250.0,0.0311]
[1737315064628,0.44837652,105260.0,105250.0,0.0311]
[1737315064833,0.50046765,105260.0,105250.0,0.0311]
[1737315071526,0.47026765,105260.0,105250.0,0.07866]
[1737315071725,0.47026765,105260.0,105250.0,0.11176]
[1737315072332,0.10946765,105260.0,105250.0,0.11176]
[1737315074235,0.10946765,105260.0,105250.0,0.47256]
[1737315075124,0.10946765,105260.0,105250.0,0.64287627]
[1737315075627,0.10946765,105260.0,105250.0,0.28207627]
[1737315076826,0.12574686,105260.0,105250.0,0.28207627]
[1737315078528,0.2526905,105290.0,105260.0,0.047552]
[1737315078837,0.42694093,105300.0,105280.0,0.47671734]
[1737315079023,0.42694093,105300.0,105290.0,0.44252717]
[1737315079223,0.42694093,105300.0,105290.0,0.47562717]
[1737315079433,0.42694093,105300.0,105290.0,0.50981234]
[1737315079628,0.25616456,105310.0,105300.0,0.11590834]
[1737315079827,0.17071148,105310.0,105300.0,0.53720834]
[1737315080435,0.17071148,105310.0,105300.0,0.50302317]
[1737315080827,0.17071148,105310.0,105300.0,0.52086622]
[1737315081132,0.15722869,105320.0,105300.0,1.36518873]
[1737315081433,0.15722869,105320.0,105310.0,0.047533]
[1737315081627,0.47049769,105320.0,105310.0,0.047533]
[1737315085627,0.10969769,105320.0,105310.0,0.047533]
[1737315086138,0.10969769,105320.0,105300.0,0.63831893]
[1737315086331,0.09956122,105310.0,105300.0,0.16948393]
[1737315086932,0.09956122,105310.0,105300.0,0.21702193]
[1737315087139,0.09956122,105310.0,105300.0,0.047538]
[1737315087928,0.047533,105310.0,105300.0,0.047538]
[1737315088232,0.09956122,105310.0,105300.0,0.047538]
[1737315089137,0.05202822,105310.0,105300.0,0.408338]
[1737315089534,0.09956122,105310.0,105300.0,0.408338]
[1737315090627,0.09956122,105310.0,105300.0,0.047538]
[1737315093440,0.09956122,105310.0,105300.0,0.408338]
[1737315093642,0.09956122,105310.0,105300.0,0.047538]
[1737315098237,0.46036122,105310.0,105300.0,0.047538]
[1737315098745,0.09956122,105310.0,105300.0,0.047538]
[1737315098946,0.05202822,105310.0,105300.0,0.047538]
[1737315099341,0.09956122,105310.0,105300.0,0.047538]
[1737315099543,0.09956122,105310.0,105300.0,0.21702193]
[1737315101846,0.13126122,105310.0,105300.0,0.44464581]
[1737315102848,0.49206122,105310.0,105300.0,0.27516188]
[1737315104945,0.13126122,105310.0,105300.0,0.27516188]
[1737315106053,0.13126122,105310.0,105300.0,0.44490788]
[1737315107059,0.13126122,105310.0,105300.0,0.608384]
[1737315107755,0.13126122,105310.0,105300.0,1.36062901]
[1737315108546,0.047533,105310.0,105300.0,1.36062901]
[1737315108746,0.047533,105310.0,105300.0,0.69946188]
[1737315109049,0.09956122,105310.0,105300.0,0.69946188]
[1737315109956,0.09956122,105310.0,105300.0,1.09797525]
[1737315110949,0.09956122,105310.0,105300.0,1.50845751]
[1737315113357,0.09956122,105310.0,105300.0,1.71286143]
[1737315115859,0.09956122,105310.0,105300.0,1.35206143]
[1737315116256,0.09956122,105310.0,105300.0,1.71286143]
[1737315118059,0.047533,105310.0,105300.0,1.71286143]
[1737315119461,0.09956122,105310.0,105300.0,1.71286143]
[1737315121857,0.09956122,105310.0,105300.0,1.39362462]
[1737315124265,0.45436769,105320.0,105300.0,1.39362462]
[1737315124561,0.13255222,105330.0,105320.0,0.047528]
[1737315124752,0.06713402,105330.0,105320.0,0.408328]
[1737315124952,0.06713402,105330.0,105320.0,0.441528]
[1737315125763,0.11465802,105330.0,105320.0,0.66877438]
[1737315126766,0.13254384,105330.0,105320.0,0.66877438]
[1737315126966,0.09954384,105330.0,105320.0,0.66877438]
[1737315127264,0.09954384,105330.0,105320.0,0.83889036]
[1737315127458,0.49134084,105340.0,105320.0,0.87129036]
[1737315127663,0.50101873,105340.0,105330.0,0.047524]
[1737315128163,0.14021873,105340.0,105330.0,0.047524]
[1737315128554,0.14021873,105340.0,105330.0,0.408324]
[1737315128864,0.14021873,105340.0,105330.0,0.44488636]
[1737315129067,0.14021873,105340.0,105330.0,0.80568636]
[1737315129560,0.14021873,105340.0,105330.0,0.44488636]
[1737315129759,0.14021873,105340.0,105330.0,0.27477038]
[1737315130766,0.09269773,105340.0,105330.0,0.63557038]
[1737315131868,0.14021673,105340.0,105330.0,0.63557038]
[1737315132468,0.14021673,105340.0,105330.0,0.80537681]
[1737315134364,0.06169773,105340.0,105330.0,0.80537681]
[1737315134669,0.05201984,105340.0,105330.0,0.80537681]
[1737315135665,0.077616,105350.0,105330.0,0.80537681]
[1737315135860,0.077616,105350.0,105340.0,0.080319]
[1737315136055,0.077616,105350.0,105340.0,0.441119]
[1737315136263,0.0876119,105350.0,105340.0,0.441119]
[1737315138658,0.4484119,105350.0,105340.0,0.080319]
[1737315139058,0.0876119,105350.0,105340.0,0.080319]
[1737315140356,0.13963174,105350.0,105340.0,0.080319]
[1737315141566,0.50043174,105350.0,105340.0,0.080319]
[1737315141965,0.13963174,105350.0,105340.0,0.080319]
[1737315144171,0.13963174,105350.0,105340.0,0.25012543]
[1737315145063,0.13963174,105350.0,105340.0,0.20260643]
[1737315145366,0.047519,105340.0,105330.0,0.51130436]
[1737315145562,0.57415868,105340.0,105330.0,0.51130436]
[1737315145874,0.57415868,105340.0,105330.0,0.46256786]
[1737315146171,0.57415868,105340.0,105320.0,0.34133285]
[1737315146172,0.047524,105330.0,105320.0,0.34133285]